Workbook

Sheet TowerConfig
A1: ID | B1: name | D1: massge | E1: towerinfoIdGroup
A2: int | B2: int | D2: int | E2: int
A4: modelID | B4: 塔名称 | E4: 塔的详情效果Id组
A5: 1 | C5: 命运峰 | E5: 1

Sheet TowerInfoConfig
A1: ID | B1: groupId | C1: level | D1: name | F1: massge | G1: towerType | H1: typeValue | I1: reward | J1: unlockValue
A2: int | B2: int | C2: int | D2: int | F2: int | G2: int | H2: int[] | I2: int[] | J2: int
A4: modelID | B4: id组 | C4: 层 | G4: 1=战斗（levelbattleId） 2=剧情（剧情事件ID） | I4: 奖励 | J4: 解锁值 | K4: 道具1 | L4: 道具2 | M4: 数量1 | N4: 数量2 | O4: 等级 | Q4: 组合1 | R4: 组合2
A5: 1 | B5: 1 | C5: 1 | E5: 第1层 | G5: 1 | H5: 2001 | I5: =CONCATENATE(L5,";",K5) -> 1001;21012 | K5: 21012 | L5: 1001 | M5: 1 | N5: =IF(L5>1400,1,VLOOKUP(O5,[1]ResourceLevelConfig!$A:$E,L5-998,FALSE)*2) -> 21888 | O5: 10 | Q5: =_xlfn.TEXTJOIN(";",1,K5:L5) -> 21012;1001 | R5: =_xlfn.TEXTJOIN(";",1,M5:N5) -> 1;21888
A6: 2 | B6: 1 | C6: 2 | E6: 第2层 | G6: 1 | H6: 2002 | I6: =CONCATENATE(L6,";",K6) -> 1003;21012 | K6: 21012 | L6: 1003 | M6: 1 | N6: =IF(L6>1400,1,VLOOKUP(O6,[1]ResourceLevelConfig!$A:$E,L6-998,FALSE)*2) -> 2260 | O6: 13 | Q6: =_xlfn.TEXTJOIN(";",1,K6:L6) -> 21012;1003 | R6: =_xlfn.TEXTJOIN(";",1,M6:N6) -> 1;2260
A7: 3 | B7: 1 | C7: 3 | E7: 第3层 | G7: 1 | H7: 2003 | I7: 1401;21012 | K7: 21012 | L7: 1401 | M7: 1 | N7: =IF(L7>1400,1,VLOOKUP(O7,[1]ResourceLevelConfig!$A:$E,L7-998,FALSE)*2) -> 1 | O7: 16 | Q7: 21012;1401 | R7: 1;1
A8: 4 | B8: 1 | C8: 4 | E8: 第4层 | G8: 1 | H8: 2004 | I8: 1001;21012 | K8: 21012 | L8: 1001 | M8: 1 | N8: =IF(L8>1400,1,VLOOKUP(O8,[1]ResourceLevelConfig!$A:$E,L8-998,FALSE)*2) -> 23952 | O8: 19 | Q8: 21012;1001 | R8: 1;23952
A9: 5 | B9: 1 | C9: 5 | E9: 第5层 | G9: 1 | H9: 2005 | I9: 1003;21012 | K9: 21012 | L9: 1003 | M9: 1 | N9: =IF(L9>1400,1,VLOOKUP(O9,[1]ResourceLevelConfig!$A:$E,L9-998,FALSE)*2) -> 2460 | O9: 22 | Q9: 21012;1003 | R9: 1;2460
A10: 6 | B10: 1 | C10: 6 | E10: 第6层 | G10: 1 | H10: 2006 | I10: 1001;21012 | K10: 21012 | L10: 1001 | M10: 1 | N10: =IF(L10>1400,1,VLOOKUP(O10,[1]ResourceLevelConfig!$A:$E,L10-998,FALSE)*2) -> 25436 | O10: 25 | Q10: 21012;1001 | R10: 1;25436
A11: 7 | B11: 1 | C11: 7 | E11: 第7层 | G11: 1 | H11: 2007 | I11: 1003;21012 | K11: 21012 | L11: 1003 | M11: 1 | N11: =IF(L11>1400,1,VLOOKUP(O11,[1]ResourceLevelConfig!$A:$E,L11-998,FALSE)*2) -> 2620 | O11: 28 | Q11: 21012;1003 | R11: 1;2620
A12: 8 | B12: 1 | C12: 8 | E12: 第8层 | G12: 1 | H12: 2008 | I12: 1401;21012 | K12: 21012 | L12: 1401 | M12: 1 | N12: =IF(L12>1400,1,VLOOKUP(O12,[1]ResourceLevelConfig!$A:$E,L12-998,FALSE)*2) -> 1 | O12: 31 | Q12: 21012;1401 | R12: 1;1
A13: 9 | B13: 1 | C13: 9 | E13: 第9层 | G13: 1 | H13: 2009 | I13: 1001;21012 | K13: 21012 | L13: 1001 | M13: 1 | N13: =IF(L13>1400,1,VLOOKUP(O13,[1]ResourceLevelConfig!$A:$E,L13-998,FALSE)*2) -> 27836 | O13: 34 | Q13: 21012;1001 | R13: 1;27836
A14: 10 | B14: 1 | C14: 10 | E14: 第10层 | G14: 1 | H14: 2010 | I14: 1003;21012 | K14: 21012 | L14: 1003 | M14: 1 | N14: =IF(L14>1400,1,VLOOKUP(O14,[1]ResourceLevelConfig!$A:$E,L14-998,FALSE)*2) -> 2860 | O14: 37 | Q14: 21012;1003 | R14: 1;2860
A15: 11 | B15: 1 | C15: 11 | E15: 第11层 | G15: 1 | H15: 2011 | I15: 1001;21012 | K15: 21012 | L15: 1001 | M15: 1 | N15: =IF(L15>1400,1,VLOOKUP(O15,[1]ResourceLevelConfig!$A:$E,L15-998,FALSE)*2) -> 29562 | O15: 40 | Q15: 21012;1001 | R15: 1;29562
A16: 12 | B16: 1 | C16: 12 | E16: 第12层 | G16: 1 | H16: 2012 | I16: 1003;21012 | K16: 21012 | L16: 1003 | M16: 1 | N16: =IF(L16>1400,1,VLOOKUP(O16,[1]ResourceLevelConfig!$A:$E,L16-998,FALSE)*2) -> 3040 | O16: 43 | Q16: 21012;1003 | R16: 1;3040
A17: 13 | B17: 1 | C17: 13 | E17: 第13层 | G17: 1 | H17: 2013 | I17: 1401;21012 | K17: 21012 | L17: 1401 | M17: 1 | N17: =IF(L17>1400,1,VLOOKUP(O17,[1]ResourceLevelConfig!$A:$E,L17-998,FALSE)*2) -> 1 | O17: 46 | Q17: 21012;1401 | R17: 1;1
A18: 14 | B18: 1 | C18: 14 | E18: 第14层 | G18: 1 | H18: 2014 | I18: 1001;21012 | K18: 21012 | L18: 1001 | M18: 1 | N18: =IF(L18>1400,1,VLOOKUP(O18,[1]ResourceLevelConfig!$A:$E,L18-998,FALSE)*2) -> 32352 | O18: 49 | Q18: 21012;1001 | R18: 1;32352
A19: 15 | B19: 1 | C19: 15 | E19: 第15层 | G19: 1 | H19: 2015 | I19: 1003;21012 | K19: 21012 | L19: 1003 | M19: 1 | N19: =IF(L19>1400,1,VLOOKUP(O19,[1]ResourceLevelConfig!$A:$E,L19-998,FALSE)*2) -> 3340 | O19: 52 | Q19: 21012;1003 | R19: 1;3340
A20: 16 | B20: 1 | C20: 16 | E20: 第16层 | G20: 1 | H20: 2016 | I20: 1001;21012 | K20: 21012 | L20: 1001 | M20: 1 | N20: =IF(L20>1400,1,VLOOKUP(O20,[1]ResourceLevelConfig!$A:$E,L20-998,FALSE)*2) -> 34356 | O20: 55 | Q20: 21012;1001 | R20: 1;34356
A21: 17 | B21: 1 | C21: 17 | E21: 第17层 | G21: 1 | H21: 2017 | I21: 1003;21012 | K21: 21012 | L21: 1003 | M21: 1 | N21: =IF(L21>1400,1,VLOOKUP(O21,[1]ResourceLevelConfig!$A:$E,L21-998,FALSE)*2) -> 3540 | O21: 58 | Q21: 21012;1003 | R21: 1;3540
A22: 18 | B22: 1 | C22: 18 | E22: 第18层 | G22: 1 | H22: 2018 | I22: 1401;21012 | K22: 21012 | L22: 1401 | M22: 1 | N22: =IF(L22>1400,1,VLOOKUP(O22,[1]ResourceLevelConfig!$A:$E,L22-998,FALSE)*2) -> 1 | O22: 61 | Q22: 21012;1401 | R22: 1;1
A23: 19 | B23: 1 | C23: 19 | E23: 第19层 | G23: 1 | H23: 2019 | I23: 1001;21012 | K23: 21012 | L23: 1001 | M23: 1 | N23: =IF(L23>1400,1,VLOOKUP(O23,[1]ResourceLevelConfig!$A:$E,L23-998,FALSE)*2) -> 37598 | O23: 64 | Q23: 21012;1001 | R23: 1;37598
A24: 20 | B24: 1 | C24: 20 | E24: 第20层 | G24: 1 | H24: 2020 | I24: 1003;21012 | K24: 21012 | L24: 1003 | M24: 1 | N24: =IF(L24>1400,1,VLOOKUP(O24,[1]ResourceLevelConfig!$A:$E,L24-998,FALSE)*2) -> 3880 | O24: 67 | Q24: 21012;1003 | R24: 1;3880
A25: 21 | B25: 1 | C25: 21 | E25: 第21层 | G25: 1 | H25: 2021 | I25: 1001;21012 | K25: 21012 | L25: 1001 | M25: 1 | N25: =IF(L25>1400,1,VLOOKUP(O25,[1]ResourceLevelConfig!$A:$E,L25-998,FALSE)*2) -> 39928 | O25: 70 | Q25: 21012;1001 | R25: 1;39928
A26: 22 | B26: 1 | C26: 22 | E26: 第22层 | G26: 1 | H26: 2022 | I26: 1003;21012 | K26: 21012 | L26: 1003 | M26: 1 | N26: =IF(L26>1400,1,VLOOKUP(O26,[1]ResourceLevelConfig!$A:$E,L26-998,FALSE)*2) -> 4120 | O26: 73 | Q26: 21012;1003 | R26: 1;4120
A27: 23 | B27: 1 | C27: 23 | E27: 第23层 | G27: 1 | H27: 2023 | I27: 1401;21012 | K27: 21012 | L27: 1401 | M27: 1 | N27: =IF(L27>1400,1,VLOOKUP(O27,[1]ResourceLevelConfig!$A:$E,L27-998,FALSE)*2) -> 1 | O27: 76 | Q27: 21012;1401 | R27: 1;1
A28: 24 | B28: 1 | C28: 24 | E28: 第24层 | G28: 1 | H28: 2024 | I28: 1001;21012 | K28: 21012 | L28: 1001 | M28: 1 | N28: =IF(L28>1400,1,VLOOKUP(O28,[1]ResourceLevelConfig!$A:$E,L28-998,FALSE)*2) -> 43694 | O28: 79 | Q28: 21012;1001 | R28: 1;43694
A29: 25 | B29: 1 | C29: 25 | E29: 第25层 | G29: 1 | H29: 2025 | I29: 1003;21012 | K29: 21012 | L29: 1003 | M29: 1 | N29: =IF(L29>1400,1,VLOOKUP(O29,[1]ResourceLevelConfig!$A:$E,L29-998,FALSE)*2) -> 4500 | O29: 82 | Q29: 21012;1003 | R29: 1;4500
A30: 26 | B30: 1 | C30: 26 | E30: 第26层 | G30: 1 | H30: 2026 | I30: 1001;21012 | K30: 21012 | L30: 1001 | M30: 1 | N30: =IF(L30>1400,1,VLOOKUP(O30,[1]ResourceLevelConfig!$A:$E,L30-998,FALSE)*2) -> 46402 | O30: 85 | Q30: 21012;1001 | R30: 1;46402
A31: 27 | B31: 1 | C31: 27 | E31: 第27层 | G31: 1 | H31: 2027 | I31: 1003;21012 | K31: 21012 | L31: 1003 | M31: 1 | N31: =IF(L31>1400,1,VLOOKUP(O31,[1]ResourceLevelConfig!$A:$E,L31-998,FALSE)*2) -> 4780 | O31: 88 | Q31: 21012;1003 | R31: 1;4780
A32: 28 | B32: 1 | C32: 28 | E32: 第28层 | G32: 1 | H32: 2028 | I32: 1402;21012 | K32: 21012 | L32: 1402 | M32: 1 | N32: =IF(L32>1400,1,VLOOKUP(O32,[1]ResourceLevelConfig!$A:$E,L32-998,FALSE)*2) -> 1 | O32: 91 | Q32: 21012;1402 | R32: 1;1
A33: 29 | B33: 1 | C33: 29 | E33: 第29层 | G33: 1 | H33: 2029 | I33: 1001;21012 | K33: 21012 | L33: 1001 | M33: 1 | N33: =IF(L33>1400,1,VLOOKUP(O33,[1]ResourceLevelConfig!$A:$E,L33-998,FALSE)*2) -> 50780 | O33: 94 | Q33: 21012;1001 | R33: 1;50780
A34: 30 | B34: 1 | C34: 30 | E34: 第30层 | G34: 1 | H34: 2030 | I34: 1003;21012 | K34: 21012 | L34: 1003 | M34: 1 | N34: =IF(L34>1400,1,VLOOKUP(O34,[1]ResourceLevelConfig!$A:$E,L34-998,FALSE)*2) -> 5240 | O34: 97 | Q34: 21012;1003 | R34: 1;5240
A35: 31 | B35: 1 | C35: 31 | E35: 第31层 | G35: 1 | H35: 2031 | I35: 1001;21012 | K35: 21012 | L35: 1001 | M35: 1 | N35: =IF(L35>1400,1,VLOOKUP(O35,[1]ResourceLevelConfig!$A:$E,L35-998,FALSE)*2) -> 53926 | O35: 100 | Q35: 21012;1001 | R35: 1;53926
A36: 32 | B36: 1 | C36: 32 | E36: 第32层 | G36: 1 | H36: 2032 | I36: 1003;21012 | K36: 21012 | L36: 1003 | M36: 1 | N36: =IF(L36>1400,1,VLOOKUP(O36,[1]ResourceLevelConfig!$A:$E,L36-998,FALSE)*2) -> 5560 | O36: 103 | Q36: 21012;1003 | R36: 1;5560
A37: 33 | B37: 1 | C37: 33 | E37: 第33层 | G37: 1 | H37: 2033 | I37: 1402;21012 | K37: 21012 | L37: 1402 | M37: 1 | N37: =IF(L37>1400,1,VLOOKUP(O37,[1]ResourceLevelConfig!$A:$E,L37-998,FALSE)*2) -> 1 | O37: 106 | Q37: 21012;1402 | R37: 1;1
A38: 34 | B38: 1 | C38: 34 | E38: 第34层 | G38: 1 | H38: 2034 | I38: 1001;21012 | K38: 21012 | L38: 1001 | M38: 1 | N38: =IF(L38>1400,1,VLOOKUP(O38,[1]ResourceLevelConfig!$A:$E,L38-998,FALSE)*2) -> 59016 | O38: 109 | Q38: 21012;1001 | R38: 1;59016
A39: 35 | B39: 1 | C39: 35 | E39: 第35层 | G39: 1 | H39: 2035 | I39: 1003;21012 | K39: 21012 | L39: 1003 | M39: 1 | N39: =IF(L39>1400,1,VLOOKUP(O39,[1]ResourceLevelConfig!$A:$E,L39-998,FALSE)*2) -> 6080 | O39: 112 | Q39: 21012;1003 | R39: 1;6080
A40: 36 | B40: 1 | C40: 36 | E40: 第36层 | G40: 1 | H40: 2036 | I40: 1001;21012 | K40: 21012 | L40: 1001 | M40: 1 | N40: =IF(L40>1400,1,VLOOKUP(O40,[1]ResourceLevelConfig!$A:$E,L40-998,FALSE)*2) -> 62672 | O40: 115 | Q40: 21012;1001 | R40: 1;62672
A41: 37 | B41: 1 | C41: 37 | E41: 第37层 | G41: 1 | H41: 2037 | I41: 1003;21012 | K41: 21012 | L41: 1003 | M41: 1 | N41: =IF(L41>1400,1,VLOOKUP(O41,[1]ResourceLevelConfig!$A:$E,L41-998,FALSE)*2) -> 6460 | O41: 118 | Q41: 21012;1003 | R41: 1;6460
A42: 38 | B42: 1 | C42: 38 | E42: 第38层 | G42: 1 | H42: 2038 | I42: 1402;21012 | K42: 21012 | L42: 1402 | M42: 1 | N42: =IF(L42>1400,1,VLOOKUP(O42,[1]ResourceLevelConfig!$A:$E,L42-998,FALSE)*2) -> 1 | O42: 121 | Q42: 21012;1402 | R42: 1;1
A43: 39 | B43: 1 | C43: 39 | E43: 第39层 | G43: 1 | H43: 2039 | I43: 1001;21012 | K43: 21012 | L43: 1001 | M43: 1 | N43: =IF(L43>1400,1,VLOOKUP(O43,[1]ResourceLevelConfig!$A:$E,L43-998,FALSE)*2) -> 68586 | O43: 124 | Q43: 21012;1001 | R43: 1;68586
A44: 40 | B44: 1 | C44: 40 | E44: 第40层 | G44: 1 | H44: 2040 | I44: 1003;21012 | K44: 21012 | L44: 1003 | M44: 1 | N44: =IF(L44>1400,1,VLOOKUP(O44,[1]ResourceLevelConfig!$A:$E,L44-998,FALSE)*2) -> 7060 | O44: 127 | Q44: 21012;1003 | R44: 1;7060
A45: 41 | B45: 1 | C45: 41 | E45: 第41层 | G45: 1 | H45: 2041 | I45: 1001;21012 | K45: 21012 | L45: 1001 | M45: 1 | N45: =IF(L45>1400,1,VLOOKUP(O45,[1]ResourceLevelConfig!$A:$E,L45-998,FALSE)*2) -> 72836 | O45: 130 | Q45: 21012;1001 | R45: 1;72836
A46: 42 | B46: 1 | C46: 42 | E46: 第42层 | G46: 1 | H46: 2042 | I46: 1003;21012 | K46: 21012 | L46: 1003 | M46: 1 | N46: =IF(L46>1400,1,VLOOKUP(O46,[1]ResourceLevelConfig!$A:$E,L46-998,FALSE)*2) -> 7500 | O46: 133 | Q46: 21012;1003 | R46: 1;7500
A47: 43 | B47: 1 | C47: 43 | E47: 第43层 | G47: 1 | H47: 2043 | I47: 1402;21012 | K47: 21012 | L47: 1402 | M47: 1 | N47: =IF(L47>1400,1,VLOOKUP(O47,[1]ResourceLevelConfig!$A:$E,L47-998,FALSE)*2) -> 1 | O47: 136 | Q47: 21012;1402 | R47: 1;1
A48: 44 | B48: 1 | C48: 44 | E48: 第44层 | G48: 1 | H48: 2044 | I48: 1001;21012 | K48: 21012 | L48: 1001 | M48: 1 | N48: =IF(L48>1400,1,VLOOKUP(O48,[1]ResourceLevelConfig!$A:$E,L48-998,FALSE)*2) -> 79708 | O48: 139 | Q48: 21012;1001 | R48: 1;79708
A49: 45 | B49: 1 | C49: 45 | E49: 第45层 | G49: 1 | H49: 2045 | I49: 1003;21012 | K49: 21012 | L49: 1003 | M49: 1 | N49: =IF(L49>1400,1,VLOOKUP(O49,[1]ResourceLevelConfig!$A:$E,L49-998,FALSE)*2) -> 8220 | O49: 142 | Q49: 21012;1003 | R49: 1;8220
A50: 46 | B50: 1 | C50: 46 | E50: 第46层 | G50: 1 | H50: 2046 | I50: 1001;21012 | K50: 21012 | L50: 1001 | M50: 1 | N50: =IF(L50>1400,1,VLOOKUP(O50,[1]ResourceLevelConfig!$A:$E,L50-998,FALSE)*2) -> 84648 | O50: 145 | Q50: 21012;1001 | R50: 1;84648
A51: 47 | B51: 1 | C51: 47 | E51: 第47层 | G51: 1 | H51: 2047 | I51: 1003;21012 | K51: 21012 | L51: 1003 | M51: 1 | N51: =IF(L51>1400,1,VLOOKUP(O51,[1]ResourceLevelConfig!$A:$E,L51-998,FALSE)*2) -> 8720 | O51: 148 | Q51: 21012;1003 | R51: 1;8720
A52: 48 | B52: 1 | C52: 48 | E52: 第48层 | G52: 1 | H52: 2048 | I52: 1402;21012 | K52: 21012 | L52: 1402 | M52: 1 | N52: =IF(L52>1400,1,VLOOKUP(O52,[1]ResourceLevelConfig!$A:$E,L52-998,FALSE)*2) -> 1 | O52: 151 | Q52: 21012;1402 | R52: 1;1
A53: 49 | B53: 1 | C53: 49 | E53: 第49层 | G53: 1 | H53: 2049 | I53: 1001;21012 | K53: 21012 | L53: 1001 | M53: 1 | N53: =IF(L53>1400,1,VLOOKUP(O53,[1]ResourceLevelConfig!$A:$E,L53-998,FALSE)*2) -> 92634 | O53: 154 | Q53: 21012;1001 | R53: 1;92634
A54: 50 | B54: 1 | C54: 50 | E54: 第50层 | G54: 1 | H54: 2050 | I54: 1003;21012 | K54: 21012 | L54: 1003 | M54: 1 | N54: =IF(L54>1400,1,VLOOKUP(O54,[1]ResourceLevelConfig!$A:$E,L54-998,FALSE)*2) -> 9540 | O54: 157 | Q54: 21012;1003 | R54: 1;9540
A55: 51 | B55: 1 | C55: 51 | E55: 第51层 | G55: 1 | H55: 2051 | I55: 1001;21012 | K55: 21012 | L55: 1001 | M55: 1 | N55: =IF(L55>1400,1,VLOOKUP(O55,[1]ResourceLevelConfig!$A:$E,L55-998,FALSE)*2) -> 98374 | O55: 160 | Q55: 21012;1001 | R55: 1;98374
A56: 52 | B56: 1 | C56: 52 | E56: 第52层 | G56: 1 | H56: 2052 | I56: 1003;21012 | K56: 21012 | L56: 1003 | M56: 1 | N56: =IF(L56>1400,1,VLOOKUP(O56,[1]ResourceLevelConfig!$A:$E,L56-998,FALSE)*2) -> 10140 | O56: 163 | Q56: 21012;1003 | R56: 1;10140
A57: 53 | B57: 1 | C57: 53 | E57: 第53层 | G57: 1 | H57: 2053 | I57: 1403;21012 | K57: 21012 | L57: 1403 | M57: 1 | N57: =IF(L57>1400,1,VLOOKUP(O57,[1]ResourceLevelConfig!$A:$E,L57-998,FALSE)*2) -> 1 | O57: 166 | Q57: 21012;1403 | R57: 1;1
A58: 54 | B58: 1 | C58: 54 | E58: 第54层 | G58: 1 | H58: 2054 | I58: 1001;21012 | K58: 21012 | L58: 1001 | M58: 1 | N58: =IF(L58>1400,1,VLOOKUP(O58,[1]ResourceLevelConfig!$A:$E,L58-998,FALSE)*2) -> 107658 | O58: 169 | Q58: 21012;1001 | R58: 1;107658
A59: 55 | B59: 1 | C59: 55 | E59: 第55层 | G59: 1 | H59: 2055 | I59: 1003;21012 | K59: 21012 | L59: 1003 | M59: 1 | N59: =IF(L59>1400,1,VLOOKUP(O59,[1]ResourceLevelConfig!$A:$E,L59-998,FALSE)*2) -> 11100 | O59: 172 | Q59: 21012;1003 | R59: 1;11100
A60: 56 | B60: 1 | C60: 56 | E60: 第56层 | G60: 1 | H60: 2056 | I60: 1001;21012 | K60: 21012 | L60: 1001 | M60: 1 | N60: =IF(L60>1400,1,VLOOKUP(O60,[1]ResourceLevelConfig!$A:$E,L60-998,FALSE)*2) -> 114328 | O60: 175 | Q60: 21012;1001 | R60: 1;114328
A61: 57 | B61: 1 | C61: 57 | E61: 第57层 | G61: 1 | H61: 2057 | I61: 1003;21012 | K61: 21012 | L61: 1003 | M61: 1 | N61: =IF(L61>1400,1,VLOOKUP(O61,[1]ResourceLevelConfig!$A:$E,L61-998,FALSE)*2) -> 11780 | O61: 178 | Q61: 21012;1003 | R61: 1;11780
A62: 58 | B62: 1 | C62: 58 | E62: 第58层 | G62: 1 | H62: 2058 | I62: 1403;21012 | K62: 21012 | L62: 1403 | M62: 1 | N62: =IF(L62>1400,1,VLOOKUP(O62,[1]ResourceLevelConfig!$A:$E,L62-998,FALSE)*2) -> 1 | O62: 181 | Q62: 21012;1403 | R62: 1;1
A63: 59 | B63: 1 | C63: 59 | E63: 第59层 | G63: 1 | H63: 2059 | I63: 1001;21012 | K63: 21012 | L63: 1001 | M63: 1 | N63: =IF(L63>1400,1,VLOOKUP(O63,[1]ResourceLevelConfig!$A:$E,L63-998,FALSE)*2) -> 125116 | O63: 184 | Q63: 21012;1001 | R63: 1;125116
A64: 60 | B64: 1 | C64: 60 | E64: 第60层 | G64: 1 | H64: 2060 | I64: 1003;21012 | K64: 21012 | L64: 1003 | M64: 1 | N64: =IF(L64>1400,1,VLOOKUP(O64,[1]ResourceLevelConfig!$A:$E,L64-998,FALSE)*2) -> 12900 | O64: 187 | Q64: 21012;1003 | R64: 1;12900
A65: 61 | B65: 1 | C65: 61 | E65: 第61层 | G65: 1 | H65: 2061 | I65: 1001;21012 | K65: 21012 | L65: 1001 | M65: 1 | N65: =IF(L65>1400,1,VLOOKUP(O65,[1]ResourceLevelConfig!$A:$E,L65-998,FALSE)*2) -> 132868 | O65: 190 | Q65: 21012;1001 | R65: 1;132868
A66: 62 | B66: 1 | C66: 62 | E66: 第62层 | G66: 1 | H66: 2062 | I66: 1003;21012 | K66: 21012 | L66: 1003 | M66: 1 | N66: =IF(L66>1400,1,VLOOKUP(O66,[1]ResourceLevelConfig!$A:$E,L66-998,FALSE)*2) -> 13700 | O66: 193 | Q66: 21012;1003 | R66: 1;13700
A67: 63 | B67: 1 | C67: 63 | E67: 第63层 | G67: 1 | H67: 2063 | I67: 1403;21012 | K67: 21012 | L67: 1403 | M67: 1 | N67: =IF(L67>1400,1,VLOOKUP(O67,[1]ResourceLevelConfig!$A:$E,L67-998,FALSE)*2) -> 1 | O67: 196 | Q67: 21012;1403 | R67: 1;1
A68: 64 | B68: 1 | C68: 64 | E68: 第64层 | G68: 1 | H68: 2064 | I68: 1001;21012 | K68: 21012 | L68: 1001 | M68: 1 | N68: =IF(L68>1400,1,VLOOKUP(O68,[1]ResourceLevelConfig!$A:$E,L68-998,FALSE)*2) -> 145406 | O68: 199 | Q68: 21012;1001 | R68: 1;145406
A69: 65 | B69: 1 | C69: 65 | E69: 第65层 | G69: 1 | H69: 2065 | I69: 1003;21012 | K69: 21012 | L69: 1003 | M69: 1 | N69: =IF(L69>1400,1,VLOOKUP(O69,[1]ResourceLevelConfig!$A:$E,L69-998,FALSE)*2) -> 14980 | O69: 202 | Q69: 21012;1003 | R69: 1;14980
A70: 66 | B70: 1 | C70: 66 | E70: 第66层 | G70: 1 | H70: 2066 | I70: =CONCATENATE(L70,";",K70) -> 1001;21012 | K70: 21012 | L70: 1001 | M70: 1 | N70: =IF(L70>1400,1,VLOOKUP(O70,[1]ResourceLevelConfig!$A:$E,L70-998,FALSE)*2) -> 154414 | O70: 205 | Q70: =_xlfn.TEXTJOIN(";",1,K70:L70) -> 21012;1001 | R70: =_xlfn.TEXTJOIN(";",1,M70:N70) -> 1;154414
A71: 67 | B71: 1 | C71: 67 | E71: 第67层 | G71: 1 | H71: 2067 | I71: 1003;21012 | K71: 21012 | L71: 1003 | M71: 1 | N71: =IF(L71>1400,1,VLOOKUP(O71,[1]ResourceLevelConfig!$A:$E,L71-998,FALSE)*2) -> 15920 | O71: 208 | Q71: 21012;1003 | R71: 1;15920
A72: 68 | B72: 1 | C72: 68 | E72: 第68层 | G72: 1 | H72: 2068 | I72: 1403;21012 | K72: 21012 | L72: 1403 | M72: 1 | N72: =IF(L72>1400,1,VLOOKUP(O72,[1]ResourceLevelConfig!$A:$E,L72-998,FALSE)*2) -> 1 | O72: 211 | Q72: 21012;1403 | R72: 1;1
A73: 69 | B73: 1 | C73: 69 | E73: 第69层 | G73: 1 | H73: 2069 | I73: 1001;21012 | K73: 21012 | L73: 1001 | M73: 1 | N73: =IF(L73>1400,1,VLOOKUP(O73,[1]ResourceLevelConfig!$A:$E,L73-998,FALSE)*2) -> 168986 | O73: 214 | Q73: 21012;1001 | R73: 1;168986
A74: 70 | B74: 1 | C74: 70 | E74: 第70层 | G74: 1 | H74: 2070 | I74: 1003;21012 | K74: 21012 | L74: 1003 | M74: 1 | N74: =IF(L74>1400,1,VLOOKUP(O74,[1]ResourceLevelConfig!$A:$E,L74-998,FALSE)*2) -> 17420 | O74: 217 | Q74: 21012;1003 | R74: 1;17420
A75: 71 | B75: 1 | C75: 71 | E75: 第71层 | G75: 1 | H75: 2071 | I75: 1001;21012 | K75: 21012 | L75: 1001 | M75: 1 | N75: =IF(L75>1400,1,VLOOKUP(O75,[1]ResourceLevelConfig!$A:$E,L75-998,FALSE)*2) -> 179456 | O75: 220 | Q75: 21012;1001 | R75: 1;179456
A76: 72 | B76: 1 | C76: 72 | E76: 第72层 | G76: 1 | H76: 2072 | I76: 1003;21012 | K76: 21012 | L76: 1003 | M76: 1 | N76: =IF(L76>1400,1,VLOOKUP(O76,[1]ResourceLevelConfig!$A:$E,L76-998,FALSE)*2) -> 18500 | O76: 223 | Q76: 21012;1003 | R76: 1;18500
A77: 73 | B77: 1 | C77: 73 | E77: 第73层 | G77: 1 | H77: 2073 | I77: 1403;21012 | K77: 21012 | L77: 1403 | M77: 1 | N77: =IF(L77>1400,1,VLOOKUP(O77,[1]ResourceLevelConfig!$A:$E,L77-998,FALSE)*2) -> 1 | O77: 226 | Q77: 21012;1403 | R77: 1;1
A78: 74 | B78: 1 | C78: 74 | E78: 第74层 | G78: 1 | H78: 2074 | I78: 1001;21012 | K78: 21012 | L78: 1001 | M78: 1 | N78: =IF(L78>1400,1,VLOOKUP(O78,[1]ResourceLevelConfig!$A:$E,L78-998,FALSE)*2) -> 196390 | O78: 229 | Q78: 21012;1001 | R78: 1;196390
A79: 75 | B79: 1 | C79: 75 | E79: 第75层 | G79: 1 | H79: 2075 | I79: 1003;21012 | K79: 21012 | L79: 1003 | M79: 1 | N79: =IF(L79>1400,1,VLOOKUP(O79,[1]ResourceLevelConfig!$A:$E,L79-998,FALSE)*2) -> 20240 | O79: 232 | Q79: 21012;1003 | R79: 1;20240
A80: 76 | B80: 1 | C80: 76 | E80: 第76层 | G80: 1 | H80: 2076 | I80: 1001;21012 | K80: 21012 | L80: 1001 | M80: 1 | N80: =IF(L80>1400,1,VLOOKUP(O80,[1]ResourceLevelConfig!$A:$E,L80-998,FALSE)*2) -> 208558 | O80: 235 | Q80: 21012;1001 | R80: 1;208558
A81: 77 | B81: 1 | C81: 77 | E81: 第77层 | G81: 1 | H81: 2077 | I81: 1003;21012 | K81: 21012 | L81: 1003 | M81: 1 | N81: =IF(L81>1400,1,VLOOKUP(O81,[1]ResourceLevelConfig!$A:$E,L81-998,FALSE)*2) -> 21500 | O81: 238 | Q81: 21012;1003 | R81: 1;21500
A82: 78 | B82: 1 | C82: 78 | E82: 第78层 | G82: 1 | H82: 2078 | I82: 1404;21012 | K82: 21012 | L82: 1404 | M82: 1 | N82: =IF(L82>1400,1,VLOOKUP(O82,[1]ResourceLevelConfig!$A:$E,L82-998,FALSE)*2) -> 1 | O82: 241 | Q82: 21012;1404 | R82: 1;1
A83: 79 | B83: 1 | C83: 79 | E83: 第79层 | G83: 1 | H83: 2079 | I83: 1001;21012 | K83: 21012 | L83: 1001 | M83: 1 | N83: =IF(L83>1400,1,VLOOKUP(O83,[1]ResourceLevelConfig!$A:$E,L83-998,FALSE)*2) -> 228238 | O83: 244 | Q83: 21012;1001 | R83: 1;228238
A84: 80 | B84: 1 | C84: 80 | E84: 第80层 | G84: 1 | H84: 2080 | I84: 1003;21012 | K84: 21012 | L84: 1003 | M84: 1 | N84: =IF(L84>1400,1,VLOOKUP(O84,[1]ResourceLevelConfig!$A:$E,L84-998,FALSE)*2) -> 23520 | O84: 247 | Q84: 21012;1003 | R84: 1;23520
A85: 81 | B85: 1 | C85: 81 | E85: 第81层 | G85: 1 | H85: 2081 | I85: 1001;21012 | K85: 21012 | L85: 1001 | M85: 1 | N85: =IF(L85>1400,1,VLOOKUP(O85,[1]ResourceLevelConfig!$A:$E,L85-998,FALSE)*2) -> 242380 | O85: 250 | Q85: 21012;1001 | R85: 1;242380
A86: 82 | B86: 1 | C86: 82 | E86: 第82层 | G86: 1 | H86: 2082 | I86: 1003;21012 | K86: 21012 | L86: 1003 | M86: 1 | N86: =IF(L86>1400,1,VLOOKUP(O86,[1]ResourceLevelConfig!$A:$E,L86-998,FALSE)*2) -> 24980 | O86: 253 | Q86: 21012;1003 | R86: 1;24980
A87: 83 | B87: 1 | C87: 83 | E87: 第83层 | G87: 1 | H87: 2083 | I87: 1404;21012 | K87: 21012 | L87: 1404 | M87: 1 | N87: =IF(L87>1400,1,VLOOKUP(O87,[1]ResourceLevelConfig!$A:$E,L87-998,FALSE)*2) -> 1 | O87: 256 | Q87: 21012;1404 | R87: 1;1
A88: 84 | B88: 1 | C88: 84 | E88: 第84层 | G88: 1 | H88: 2084 | I88: 1001;21012 | K88: 21012 | L88: 1001 | M88: 1 | N88: =IF(L88>1400,1,VLOOKUP(O88,[1]ResourceLevelConfig!$A:$E,L88-998,FALSE)*2) -> 265252 | O88: 259 | Q88: 21012;1001 | R88: 1;265252
A89: 85 | B89: 1 | C89: 85 | E89: 第85层 | G89: 1 | H89: 2085 | I89: 1003;21012 | K89: 21012 | L89: 1003 | M89: 1 | N89: =IF(L89>1400,1,VLOOKUP(O89,[1]ResourceLevelConfig!$A:$E,L89-998,FALSE)*2) -> 27340 | O89: 262 | Q89: 21012;1003 | R89: 1;27340
A90: 86 | B90: 1 | C90: 86 | E90: 第86层 | G90: 1 | H90: 2086 | I90: 1001;21012 | K90: 21012 | L90: 1001 | M90: 1 | N90: =IF(L90>1400,1,VLOOKUP(O90,[1]ResourceLevelConfig!$A:$E,L90-998,FALSE)*2) -> 281686 | O90: 265 | Q90: 21012;1001 | R90: 1;281686
A91: 87 | B91: 1 | C91: 87 | E91: 第87层 | G91: 1 | H91: 2087 | I91: 1003;21012 | K91: 21012 | L91: 1003 | M91: 1 | N91: =IF(L91>1400,1,VLOOKUP(O91,[1]ResourceLevelConfig!$A:$E,L91-998,FALSE)*2) -> 29020 | O91: 268 | Q91: 21012;1003 | R91: 1;29020
A92: 88 | B92: 1 | C92: 88 | E92: 第88层 | G92: 1 | H92: 2088 | I92: 1404;21012 | K92: 21012 | L92: 1404 | M92: 1 | N92: =IF(L92>1400,1,VLOOKUP(O92,[1]ResourceLevelConfig!$A:$E,L92-998,FALSE)*2) -> 1 | O92: 271 | Q92: 21012;1404 | R92: 1;1
A93: 89 | B93: 1 | C93: 89 | E93: 第89层 | G93: 1 | H93: 2089 | I93: 1001;21012 | K93: 21012 | L93: 1001 | M93: 1 | N93: =IF(L93>1400,1,VLOOKUP(O93,[1]ResourceLevelConfig!$A:$E,L93-998,FALSE)*2) -> 308266 | O93: 274 | Q93: 21012;1001 | R93: 1;308266
A94: 90 | B94: 1 | C94: 90 | E94: 第90层 | G94: 1 | H94: 2090 | I94: 1003;21012 | K94: 21012 | L94: 1003 | M94: 1 | N94: =IF(L94>1400,1,VLOOKUP(O94,[1]ResourceLevelConfig!$A:$E,L94-998,FALSE)*2) -> 31760 | O94: 277 | Q94: 21012;1003 | R94: 1;31760
A95: 91 | B95: 1 | C95: 91 | E95: 第91层 | G95: 1 | H95: 2091 | I95: 1001;21012 | K95: 21012 | L95: 1001 | M95: 1 | N95: =IF(L95>1400,1,VLOOKUP(O95,[1]ResourceLevelConfig!$A:$E,L95-998,FALSE)*2) -> 327366 | O95: 280 | Q95: 21012;1001 | R95: 1;327366
A96: 92 | B96: 1 | C96: 92 | E96: 第92层 | G96: 1 | H96: 2092 | I96: 1003;21012 | K96: 21012 | L96: 1003 | M96: 1 | N96: =IF(L96>1400,1,VLOOKUP(O96,[1]ResourceLevelConfig!$A:$E,L96-998,FALSE)*2) -> 33740 | O96: 283 | Q96: 21012;1003 | R96: 1;33740
A97: 93 | B97: 1 | C97: 93 | E97: 第93层 | G97: 1 | H97: 2093 | I97: 1404;21012 | K97: 21012 | L97: 1404 | M97: 1 | N97: =IF(L97>1400,1,VLOOKUP(O97,[1]ResourceLevelConfig!$A:$E,L97-998,FALSE)*2) -> 1 | O97: 286 | Q97: 21012;1404 | R97: 1;1
A98: 94 | B98: 1 | C98: 94 | E98: 第94层 | G98: 1 | H98: 2094 | I98: 1001;21012 | K98: 21012 | L98: 1001 | M98: 1 | N98: =IF(L98>1400,1,VLOOKUP(O98,[1]ResourceLevelConfig!$A:$E,L98-998,FALSE)*2) -> 354686 | O98: 288 | Q98: 21012;1001 | R98: 1;354686
A99: 95 | B99: 1 | C99: 95 | E99: 第95层 | G99: 1 | H99: 2095 | I99: 1003;21012 | K99: 21012 | L99: 1003 | M99: 1 | N99: =IF(L99>1400,1,VLOOKUP(O99,[1]ResourceLevelConfig!$A:$E,L99-998,FALSE)*2) -> 36180 | O99: 290 | Q99: 21012;1003 | R99: 1;36180
A100: 96 | B100: 1 | C100: 96 | E100: 第96层 | G100: 1 | H100: 2096 | I100: 1001;21012 | K100: 21012 | L100: 1001 | M100: 1 | N100: =IF(L100>1400,1,VLOOKUP(O100,[1]ResourceLevelConfig!$A:$E,L100-998,FALSE)*2) -> 369190 | O100: 292 | Q100: 21012;1001 | R100: 1;369190
A101: 97 | B101: 1 | C101: 97 | E101: 第97层 | G101: 1 | H101: 2097 | I101: 1003;21012 | K101: 21012 | L101: 1003 | M101: 1 | N101: =IF(L101>1400,1,VLOOKUP(O101,[1]ResourceLevelConfig!$A:$E,L101-998,FALSE)*2) -> 37660 | O101: 294 | Q101: 21012;1003 | R101: 1;37660
A102: 98 | B102: 1 | C102: 98 | E102: 第98层 | G102: 1 | H102: 2098 | I102: 1404;21012 | K102: 21012 | L102: 1404 | M102: 1 | N102: =IF(L102>1400,1,VLOOKUP(O102,[1]ResourceLevelConfig!$A:$E,L102-998,FALSE)*2) -> 1 | O102: 296 | Q102: 21012;1404 | R102: 1;1
A103: 99 | B103: 1 | C103: 99 | E103: 第99层 | G103: 1 | H103: 2099 | I103: 1001;21012 | K103: 21012 | L103: 1001 | M103: 1 | N103: =IF(L103>1400,1,VLOOKUP(O103,[1]ResourceLevelConfig!$A:$E,L103-998,FALSE)*2) -> 392064 | O103: 298 | Q103: 21012;1001 | R103: 1;392064
A104: 100 | B104: 1 | C104: 100 | E104: 第100层 | G104: 1 | H104: 2100 | I104: 1003;21012 | K104: 21012 | L104: 1003 | M104: 1 | N104: =IF(L104>1400,1,VLOOKUP(O104,[1]ResourceLevelConfig!$A:$E,L104-998,FALSE)*2) -> 40000 | O104: 300 | Q104: 21012;1003 | R104: 1;40000
